bitfinex-derivatives/quotes_BTCF0:USTF0_20250325
["timestamp","ask_amount","ask_price","bid_price","bid_amount"]
[1742864807924,0.17732334,87500.0,87499.0,0.92476]
[1742864808428,0.17664334,87500.0,87499.0,0.92476]
[1742864809922,0.17664334,87500.0,87499.0,0.93412157]
[1742864810119,0.17664334,87500.0,87499.0,0.92476]
[1742864810326,0.17732334,87500.0,87499.0,0.92476]
[1742864810723,0.17664334,87500.0,87499.0,0.92476]
[1742864811518,0.17732334,87500.0,87499.0,0.92476]
[1742864826749,0.06305144,87500.0,87499.0,0.92476]
[1742864826946,0.17664334,87500.0,87499.0,0.92476]
[1742864827251,0.17732334,87500.0,87499.0,0.92476]
[1742864829039,0.17732334,87500.0,87499.0,1.0390333]
[1742864829040,0.00085144,87500.0,87499.0,1.0390333]
[1742864829244,0.00017144,87500.0,87499.0,1.0390333]
[1742864831151,0.06107144,87500.0,87499.0,1.0390333]
[1742864832655,0.17534334,87500.0,87499.0,1.0390333]
[1742864833558,0.17534334,87500.0,87499.0,0.66476]
[1742864833759,0.17610334,87500.0,87499.0,0.66476]
[1742864834448,0.17534334,87500.0,87499.0,0.66476]
[1742864834849,0.06107144,87500.0,87499.0,0.66476]
[1742864835045,0.17534334,87500.0,87499.0,0.66476]
[1742864835249,0.17534334,87500.0,87499.0,0.88476]
[1742864836459,0.17534334,87500.0,87499.0,0.9990333]
[1742864837862,0.06107144,87500.0,87499.0,0.9990333]
[1742864840163,0.06107144,87500.0,87499.0,0.88476]
[1742864840363,0.17534334,87500.0,87499.0,0.88476]
[1742864843667,0.06107144,87500.0,87499.0,0.9990333]
[1742864845072,0.17534334,87500.0,87499.0,0.88476]
[1742864845765,0.17534334,87500.0,87499.0,0.9990333]
[1742864845969,0.06107144,87500.0,87499.0,0.9990333]
[1742864847868,0.02183655,87521.0,87511.0,0.1142576]
[1742864848071,0.1690812,87523.0,87515.0,0.0571261]
[1742864848264,0.1690812,87523.0,87522.0,0.3608]
[1742864848460,0.1690812,87523.0,87522.0,0.79152]
[1742864848665,0.2833231,87523.0,87522.0,0.79152]
[1742864848864,0.2840031,87523.0,87522.0,0.79152]
[1742864849273,0.11264,87523.0,87522.0,0.79152]
[1742864849567,0.2268819,87523.0,87522.0,0.79152]
[1742864849761,0.2903819,87523.0,87522.0,0.79152]
[1742864850161,0.2943819,87523.0,87522.0,0.79152]
[1742864851374,0.2943819,87523.0,87522.0,0.57152]
[1742864852575,0.1824219,87523.0,87522.0,0.57152]
[1742864852875,0.2943819,87523.0,87522.0,0.57152]
[1742864854469,0.2943819,87523.0,87522.0,0.60182]
[1742864858278,0.2943819,87523.0,87522.0,0.87182]
[1742864861981,0.2943819,87523.0,87522.0,0.60182]
[1742864864175,0.1824219,87523.0,87522.0,0.60182]
[1742864871381,0.1824219,87523.0,87522.0,0.24102]
[1742864871777,0.1824219,87523.0,87522.0,0.60182]
[1742864872374,0.1824219,87523.0,87522.0,0.24102]
[1742864872573,0.1824219,87523.0,87522.0,0.60182]
[1742864877283,0.1824219,87523.0,87522.0,0.24102]
[1742864877486,0.1824219,87523.0,87522.0,0.60182]
[1742864885700,0.1824219,87523.0,87522.0,0.00072]
[1742864885993,0.1142484,87518.0,87517.0,0.0627]
[1742864886197,0.1149684,87518.0,87517.0,0.30342]
[1742864886495,0.1788684,87518.0,87517.0,0.30342]
[1742864887386,0.1828684,87518.0,87517.0,0.30342]
[1742864902323,0.1828684,87518.0,87517.0,0.66422]
[1742864918636,0.1189684,87518.0,87517.0,0.93422]
[1742864919237,0.1189684,87518.0,87517.0,0.94404199]
[1742864919422,0.1189684,87518.0,87517.0,0.93422]
[1742864919927,0.1822684,87518.0,87517.0,0.93422]
[1742864920538,0.1822684,87518.0,87517.0,0.66422]
[1742864956159,0.1822684,87518.0,87517.0,0.30342]
[1742864956358,0.1822684,87518.0,87517.0,0.66422]
[1742864958155,0.1822684,87518.0,87517.0,0.42422]
[1742864961462,0.1822684,87518.0,87507.0,0.37096971]
[1742864961463,0.1822684,87518.0,87507.0,0.3608]
[1742864961667,0.1142615,87508.0,87507.0,0.36148]
[1742864961859,0.2268215,87508.0,87507.0,0.36148]
[1742864962368,0.23702319,87508.0,87507.0,0.36148]
[1742864962767,0.29992319,87508.0,87507.0,0.42338]
[1742864963066,0.30192319,87508.0,87507.0,0.42338]
[1742864964967,0.30192319,87508.0,87507.0,0.36148]
[1742864965270,0.30192319,87508.0,87507.0,0.00068]
[1742864965456,0.1142706,87501.0,87500.0,0.0947]
[1742864965661,0.1149506,87501.0,87500.0,0.0953]
[1742864965864,0.1780506,87501.0,87500.0,0.0953]
[1742864966070,0.1780506,87501.0,87500.0,0.0947]
[1742864966467,0.1780506,87501.0,87500.0,0.0953]
[1742864967360,0.0571432,87489.0,87487.0,0.00045721]
[1742864967564,0.1722695,87489.0,87488.0,0.0631]
[1742864967861,0.1722695,87489.0,87488.0,0.10382]
[1742864968067,0.1722695,87489.0,87488.0,0.13462]
[1742864968571,0.1722695,87489.0,87488.0,0.1339]
[1742864968867,0.1722695,87489.0,87488.0,0.1369]
[1742864969971,0.1722695,87489.0,87488.0,0.1349]
[1742864972170,0.1732695,87489.0,87488.0,0.1339]
[1742864972473,0.18323943,87489.0,87488.0,0.1339]
[1742864972667,0.18323943,87489.0,87488.0,0.1345]
[1742864975465,0.18323943,87489.0,87488.0,0.0406]
[1742864975874,0.18223943,87489.0,87488.0,0.1383]
[1742864976670,0.18323943,87489.0,87488.0,0.1383]
[1742864977062,0.18223943,87489.0,87488.0,0.1383]
[1742864977265,0.18323943,87489.0,87488.0,0.1383]
[1742864980380,0.21343943,87489.0,87488.0,0.1383]
[1742864981082,0.21343943,87489.0,87488.0,0.0983]
[1742864982284,0.0571457,87485.0,87475.0,0.3608]
[1742864982478,0.3706256,87484.0,87483.0,0.0318]
[1742864982673,0.37174561,87484.0,87483.0,0.03244]
[1742864982869,0.37174561,87484.0,87483.0,0.39324]
[1742864983472,0.37174561,87484.0,87483.0,0.03244]
[1742864983676,0.37174561,87484.0,87483.0,0.3926]
[1742864983879,0.37174561,87484.0,87483.0,0.3932]
[1742864984079,0.37174561,87484.0,87483.0,0.0324]
[1742864984280,0.37174561,87484.0,87483.0,0.0318]
[1742864986577,0.40294561,87484.0,87483.0,0.0318]
[1742864995673,0.40294561,87484.0,87483.0,0.3926]
[1742864995878,0.40294561,87484.0,87483.0,0.3932]
[1742864996587,0.29110561,87484.0,87483.0,0.3932]
[1742864996783,0.37174561,87484.0,87483.0,0.3932]
[1742864997385,0.40484561,87484.0,87483.0,0.3932]
[1742864999776,0.40484561,87484.0,87483.0,0.5032]
[1742865001185,0.40484561,87484.0,87483.0,0.3932]
[1742865004594,0.1143059,87474.0,87472.0,0.56617184]
[1742865004783,0.1780072,87473.0,87472.0,0.25775184]
[1742865004986,0.17920721,87473.0,87472.0,0.25775184]
[1742865005886,0.17920721,87473.0,87472.0,0.32065184]
[1742865006597,0.18935835,87473.0,87472.0,0.32365184]
[1742865006899,0.18935835,87473.0,87472.0,0.32665184]
[1742865007207,0.12565835,87473.0,87472.0,0.94745184]
[1742865008089,0.12565835,87473.0,87472.0,0.74208]
[1742865008883,0.15755835,87473.0,87472.0,0.74208]
[1742865009286,0.19005835,87473.0,87472.0,0.74208]
[1742865010296,0.19005835,87473.0,87472.0,0.48208]
[1742865022091,0.12565835,87473.0,87472.0,0.58208]
[1742865022300,0.00017144,87489.0,87472.0,0.99208]
[1742865022605,0.00017144,87489.0,87488.0,0.3608]
[1742865022799,0.00017144,87489.0,87488.0,0.8414]
[1742865022990,0.1142766,87497.0,87488.0,1.0185876]
[1742865023198,0.0571341,87503.0,87496.0,0.3608]
[1742865023394,0.00088001,87503.0,87497.0,0.0629]
[1742865023603,0.057136,87500.0,87497.0,0.5335]
[1742865023812,0.1142746,87498.0,87497.0,0.5335]
[1742865024197,0.1151146,87498.0,87497.0,0.5335]
[1742865025506,0.1151146,87498.0,87497.0,0.3135]
[1742865025705,0.1781146,87498.0,87497.0,0.3135]
[1742865026201,0.1781146,87498.0,87497.0,0.3448]
[1742865027205,0.1831146,87498.0,87497.0,0.3448]
[1742865028112,0.1821146,87498.0,87497.0,0.3448]
[1742865036814,0.114285,87490.0,87489.0,0.00017144]
[1742865037114,0.12381202,87490.0,87489.0,0.02017144]
[1742865037306,0.18551202,87490.0,87489.0,0.02017144]
[1742865039302,0.18551202,87490.0,87489.0,0.00017144]
[1742865039614,0.18551202,87490.0,87460.0,0.3608]
[1742865039615,0.1143072,87473.0,87472.0,0.0331]
[1742865039821,0.11534721,87473.0,87472.0,0.164]
[1742865040003,0.17824721,87473.0,87472.0,0.164]
[1742865041115,0.06394001,87473.0,87472.0,0.267]
[1742865041316,0.0629,87473.0,87472.0,0.267]
[1742865042014,0.06394001,87473.0,87472.0,0.267]
[1742865042204,0.17824721,87473.0,87472.0,0.267]
[1742865042512,0.17824721,87473.0,87472.0,0.27]
[1742865042709,0.06394001,87473.0,87472.0,0.3843085]
[1742865042910,0.057149,87480.0,87473.0,0.0571536]
[1742865043113,0.1143019,87478.0,87477.0,0.3608]
[1742865043305,0.1143019,87478.0,87477.0,0.6208]
[1742865043613,0.11534191,87478.0,87477.0,0.6214]
[1742865043911,0.00017144,87481.0,87477.0,0.6214]
[1742865044114,0.00017144,87481.0,87478.0,0.1772002]
[1742865044308,0.00017144,87481.0,87480.0,0.1142981]
[1742865044511,0.00017144,87481.0,87480.0,0.6777981]
[1742865045914,0.00017144,87481.0,87480.0,0.6787981]
[1742865046214,0.00017144,87481.0,87480.0,0.68911641]
[1742865047216,0.00017144,87481.0,87480.0,0.69011641]
[1742865054310,0.0622,87490.0,87489.0,0.1142863]
[1742865054510,0.17752501,87490.0,87489.0,0.5848863]
[1742865054812,0.176485,87490.0,87489.0,0.5848863]
[1742865055014,0.17752501,87490.0,87489.0,0.6471863]
[1742865055213,0.06324001,87490.0,87489.0,0.6471863]
[1742865055410,0.0632,87490.0,87489.0,0.6471863]
[1742865055825,0.0642,87490.0,87489.0,0.6471863]
[1742865058221,0.06524001,87490.0,87489.0,0.6471863]
[1742865058413,0.0642,87490.0,87489.0,0.6471863]
[1742865059424,0.0642,87490.0,87489.0,0.6796863]
[1742865059728,0.0004,87512.0,87489.0,0.67716]
[1742865059912,0.0318,87503.0,87502.0,0.1142693]
[1742865060111,0.0318,87503.0,87502.0,1.05993117]
[1742865061024,0.0317,87507.0,87506.0,0.1142641]
[1742865061331,0.0317,87507.0,87506.0,0.5748641]
[1742865061511,0.0317,87507.0,87506.0,0.6058641]
[1742865062418,0.0317,87507.0,87506.0,0.6367641]
[1742865062818,0.0327,87507.0,87506.0,0.6367641]
[1742865063321,0.0347,87507.0,87506.0,0.6367641]
[1742865064813,0.1817628,87507.0,87506.0,0.3025]
[1742865065018,0.1932261,87507.0,87506.0,0.0006]
[1742865065221,0.2257261,87507.0,87506.0,0.0006]
[1742865066725,0.06862001,87507.0,87506.0,0.59541013]
[1742865066919,0.0675,87507.0,87506.0,0.59541013]
[1742865067120,0.0347,87507.0,87506.0,0.59541013]
[1742865067418,0.003,87507.0,87506.0,0.65881013]
[1742865068325,0.004,87507.0,87506.0,0.65881013]
[1742865068730,0.003,87507.0,87506.0,0.65881013]
[1742865069021,0.004,87507.0,87506.0,0.65881013]
[1742865070328,0.0646,87510.0,87509.0,0.1142602]
[1742865070626,0.1788589,87510.0,87509.0,0.3614]
[1742865070924,0.57159891,87510.0,87509.0,0.0006]
[1742865071127,0.1142693,87502.0,87501.0,0.00017144]
[1742865071314,0.11530931,87502.0,87501.0,0.00077144]
[1742865071520,0.18150931,87502.0,87501.0,0.00077144]
[1742865072026,0.18150931,87502.0,87501.0,0.24077144]
[1742865072921,0.06724001,87502.0,87501.0,0.24077144]
[1742865073519,0.06728,87502.0,87501.0,0.24077144]
[1742865074530,0.06728,87502.0,87501.0,0.35504204]
[1742865076121,0.06728,87502.0,87501.0,0.24077144]
[1742865077031,0.06728,87502.0,87501.0,0.35504204]
[1742865077234,0.0662,87502.0,87501.0,0.24077144]
[1742865077421,0.06724001,87502.0,87501.0,0.35504204]
[1742865077622,0.06724001,87502.0,87501.0,0.24077144]
[1742865079434,0.18150931,87502.0,87501.0,0.24077144]
[1742865084433,0.06724001,87502.0,87501.0,0.24077144]
[1742865084626,0.18150931,87502.0,87501.0,0.24077144]
[1742865085720,0.18150931,87502.0,87501.0,0.30367144]
[1742865088441,0.18150931,87502.0,87501.0,0.27237144]
[1742865091736,0.18150931,87502.0,87501.0,0.03237144]
[1742865094736,0.18150931,87502.0,87501.0,0.24237144]
[1742865104049,0.06724001,87502.0,87501.0,0.24237144]
[1742865104438,0.1804693,87502.0,87501.0,0.24237144]
[1742865104641,0.18150931,87502.0,87501.0,0.24237144]
[1742865107849,0.18150931,87502.0,87501.0,0.03237144]
[1742865108934,0.18150931,87502.0,87501.0,0.00077144]
[1742865109139,0.1142824,87492.0,87491.0,0.20537184]
[1742865109340,0.47620241,87492.0,87491.0,0.0606]
[1742865109546,0.57120241,87492.0,87491.0,0.0606]
[1742865109750,0.5926217,87492.0,87491.0,0.0606]
[1742865110344,0.60312918,87492.0,87491.0,0.0606]
[1742865110851,0.58170989,87492.0,87491.0,0.0606]
[1742865112258,0.60289523,87492.0,87491.0,0.0606]
[1742865112455,0.60289523,87492.0,87491.0,0.06]
[1742865117253,0.58170989,87492.0,87491.0,0.06]
[1742865117639,0.60292182,87492.0,87491.0,0.06]
[1742865118449,0.58170989,87492.0,87491.0,0.06]
[1742865121043,0.58170989,87492.0,87484.0,0.0629]
[1742865121044,0.1142915,87485.0,87484.0,0.0629]
[1742865121243,0.4761715,87485.0,87484.0,0.0629]
[1742865121445,0.1143085,87472.0,87460.0,0.4198]
[1742865121644,0.1143085,87472.0,87459.0,0.0571625]
[1742865121645,0.11534851,87472.0,87471.0,0.12109729]
[1742865122048,0.17944851,87472.0,87471.0,0.12109729]
[1742865122447,0.17944851,87472.0,87471.0,0.21109729]
[1742865123156,0.17944851,87472.0,87471.0,0.22009729]
[1742865130665,0.17944851,87472.0,87471.0,0.15009729]
[1742865130966,0.17944851,87472.0,87471.0,0.21439729]
[1742865134663,0.17944851,87472.0,87471.0,0.32870709]
[1742865135159,0.17944851,87472.0,87471.0,0.21439729]
[1742865135975,0.17944851,87472.0,87471.0,0.32870709]
[1742865139373,0.17944851,87472.0,87471.0,0.21439729]
[1742865140468,0.17944851,87472.0,87471.0,0.32870709]
[1742865141979,0.17944851,87472.0,87471.0,0.21439729]
[1742865144079,0.17944851,87472.0,87471.0,0.32870709]
[1742865147583,0.17944851,87472.0,87471.0,0.34342188]
[1742865151071,0.17944851,87472.0,87471.0,0.32870709]
[1742865152475,0.17944851,87472.0,87471.0,0.21439729]
[1742865153090,0.17944851,87472.0,87471.0,0.32870709]
[1742865153788,0.17944851,87472.0,87471.0,0.21439729]
[1742865158493,0.17944851,87472.0,87471.0,0.22911323]
[1742865162490,0.17944851,87472.0,87471.0,0.21439729]
[1742865166694,0.0571521,87476.0,87474.0,0.0571529]
[1742865166880,0.0323,87477.0,87475.0,0.1528522]
[1742865167085,0.0323,87477.0,87476.0,0.1143033]
[1742865167287,0.146602,87477.0,87476.0,0.6249033]
[1742865167486,0.146602,87477.0,87476.0,0.6868033]
[1742865167686,0.177402,87477.0,87476.0,0.6868033]
[1742865168284,0.177402,87477.0,87476.0,0.6898033]
[1742865168791,0.0631,87477.0,87476.0,0.6898033]
[1742865170595,0.177402,87477.0,87476.0,0.6928033]
[1742865172302,0.177402,87477.0,87476.0,0.5785]
[1742865175094,0.178122,87477.0,87476.0,0.5785]
[1742865179792,0.177402,87477.0,87476.0,0.5785]
[1742865180202,0.06382,87477.0,87476.0,0.6928033]
[1742865180499,0.0631,87477.0,87476.0,0.6928033]
[1742865181302,0.06382,87477.0,87476.0,0.6928033]
[1742865181599,0.0631,87477.0,87476.0,0.6928033]
[1742865181798,0.0639,87477.0,87476.0,0.6928033]
[1742865182699,0.0631,87477.0,87476.0,0.6928033]
[1742865187304,0.0631,87477.0,87476.0,1.0536033]
[1742865190602,0.0631,87477.0,87476.0,0.9393]
[1742865190795,0.0631,87477.0,87476.0,1.0536033]
[1742865190992,0.0639,87477.0,87476.0,1.0536033]
[1742865192604,0.0631,87477.0,87476.0,1.0536033]
[1742865192908,0.06382,87477.0,87476.0,1.0536033]
[1742865193410,0.0631,87477.0,87476.0,1.0536033]
[1742865193807,0.06382,87477.0,87476.0,1.0536033]
[1742865195606,0.0631,87477.0,87476.0,1.0536033]
[1742865195995,0.06382,87477.0,87476.0,1.0536033]
[1742865196199,0.00017144,87493.0,87476.0,1.20444717]
[1742865196401,0.00097144,87493.0,87492.0,0.1142824]
[1742865196605,0.00017144,87493.0,87492.0,0.7173824]
[1742865197100,0.00017144,87493.0,87492.0,0.72817713]
[1742865198012,0.00017144,87493.0,87492.0,0.61389473]
[1742865198500,0.00017144,87493.0,87492.0,0.6031]
[1742865201715,0.06347144,87493.0,87492.0,0.6031]
[1742865201911,0.06419144,87493.0,87492.0,0.6031]
[1742865202301,0.06419144,87493.0,87492.0,0.7173824]
[1742865202507,0.06347144,87493.0,87492.0,0.7173824]
[1742865205121,0.00017144,87493.0,87492.0,0.7173824]
[1742865208512,0.0319,87500.0,87493.0,0.0571405]
[1742865208706,0.0319,87500.0,87499.0,0.4750733]
[1742865208910,0.0319,87500.0,87499.0,0.9750733]
[1742865209117,0.0319,87500.0,87499.0,1.0728733]
[1742865209317,0.0004,87512.0,87510.0,0.1142588]
[1742865209513,0.0004,87512.0,87511.0,0.097]
[1742865209717,0.1146563,87512.0,87511.0,0.627]
[1742865210022,0.12550414,87512.0,87511.0,0.627]
[1742865210521,0.15850414,87512.0,87511.0,0.627]
[1742865210818,0.04424784,87512.0,87511.0,0.627]
[1742865211023,0.15850414,87512.0,87511.0,0.627]
[1742865213830,0.07464784,87512.0,87511.0,0.627]
[1742865214010,0.18962414,87512.0,87511.0,0.62772]
[1742865214525,0.07536784,87512.0,87511.0,0.62772]
[1742865214709,0.18890414,87512.0,87511.0,0.62772]
[1742865214913,0.18970414,87512.0,87511.0,0.62772]
[1742865217716,0.07544784,87512.0,87511.0,0.62772]
[1742865217915,0.18890414,87512.0,87511.0,0.62772]
[1742865218225,0.18970414,87512.0,87511.0,0.62772]
[1742865223927,0.18970414,87512.0,87502.0,0.00017144]
[1742865223928,0.114268,87503.0,87502.0,0.00017144]
[1742865224130,0.00096001,87503.0,87490.0,0.3608]
[1742865224318,0.1142889,87487.0,87476.0,0.3]
[1742865224516,0.1142889,87487.0,87472.0,0.50236]
[1742865224517,0.4750889,87487.0,87486.0,0.6198]
[1742865224715,0.4750889,87487.0,87486.0,0.62048]
[1742865224716,0.54939325,87487.0,87486.0,0.62048]
[1742865225423,0.58169325,87487.0,87486.0,0.62048]
[1742865225631,0.58169325,87487.0,87486.0,0.62148]
[1742865226724,0.58169325,87487.0,87486.0,0.00268]
[1742865227026,0.58169325,87487.0,87486.0,0.002]
[1742865234434,0.58169325,87487.0,87479.0,0.0305]
[1742865234435,0.1143072,87473.0,87472.0,0.03]
[1742865234629,0.1143085,87472.0,87471.0,0.00045729]
[1742865234937,0.0571604,87463.0,87458.0,0.0929]
[1742865235238,0.1143236,87461.0,87458.0,0.3735]
[1742865235427,0.0634,87460.0,87458.0,0.3735]
[1742865235631,0.07527003,87460.0,87458.0,0.3735]
[1742865236027,0.18847492,87460.0,87458.0,0.3735]
[1742865236227,0.07535003,87460.0,87458.0,0.3735]
[1742865236429,0.07415002,87460.0,87458.0,0.3735]
[1742865236628,0.07531002,87460.0,87458.0,0.3735]
[1742865237223,0.1143255,87459.0,87458.0,0.3735]
[1742865237535,0.11544551,87459.0,87458.0,0.3388]
[1742865237835,0.21294551,87459.0,87458.0,0.2706]
[1742865238032,0.21294551,87459.0,87458.0,0.2746]
[1742865239927,0.21294551,87459.0,87458.0,0.2726]
[1742865240128,0.21294551,87459.0,87458.0,0.2746]
[1742865246425,0.21294551,87459.0,87458.0,0.2726]
[1742865246633,0.21294551,87459.0,87458.0,0.2736]
[1742865247031,0.1143399,87448.0,87447.0,0.3608]
[1742865247241,0.2272199,87448.0,87447.0,0.3614]
[1742865247835,0.2272199,87448.0,87447.0,0.426]
[1742865248239,0.2272199,87448.0,87447.0,0.435]
[1742865249941,0.2920199,87448.0,87447.0,0.435]
[1742865251144,0.2920199,87448.0,87447.0,0.43]
[1742865251444,0.2940199,87448.0,87447.0,0.426]
[1742865253846,0.2950199,87448.0,87447.0,0.426]
[1742865254343,0.2950599,87448.0,87447.0,0.426]
[1742865256445,0.00432,87448.0,87447.0,0.646]
[1742865256650,0.2302599,87448.0,87447.0,0.646]
[1742865257641,0.11592,87448.0,87447.0,0.646]
[1742865257843,0.2302599,87448.0,87447.0,0.646]
[1742865258050,0.1186599,87448.0,87447.0,0.646]
[1742865258939,0.1143366,87451.0,87447.0,0.956]
[1742865259145,0.0571671,87453.0,87447.0,0.956]
[1742865259146,0.1143399,87448.0,87447.0,0.956]
[1742865259555,0.1152599,87448.0,87447.0,0.956]
[1742865260943,0.1143399,87448.0,87447.0,0.956]
[1742865262150,0.1153399,87448.0,87447.0,0.956]
[1742865263841,0.12622955,87448.0,87447.0,0.956]
[1742865264049,0.1153399,87448.0,87447.0,0.956]
[1742865264243,0.1153399,87448.0,87447.0,0.97059324]
[1742865264852,0.001,87448.0,87447.0,1.08493444]
[1742865265051,0.001,87448.0,87447.0,0.97059324]
[1742865265942,0.001,87448.0,87447.0,0.956]
[1742865267453,0.1153399,87448.0,87447.0,0.956]
[1742865267655,0.1153399,87448.0,87447.0,0.676]
[1742865267957,0.1162599,87448.0,87447.0,0.676]
[1742865268247,0.00192,87448.0,87447.0,0.926]
[1742865268438,0.001,87448.0,87447.0,0.926]
[1742865271558,0.001,87448.0,87447.0,1.0403412]
[1742865272139,0.001,87448.0,87447.0,0.926]
[1742865275051,0.001,87448.0,87447.0,1.0403412]
[1742865275443,0.001,87448.0,87447.0,0.926]
[1742865275644,0.001,87448.0,87447.0,1.0403412]
[1742865276749,0.001,87448.0,87447.0,0.926]
[1742865277741,0.1153399,87448.0,87447.0,0.926]
[1742865277945,0.18109991,87448.0,87447.0,0.926]
[1742865279153,0.1801399,87448.0,87447.0,0.676]
[1742865279354,0.18109991,87448.0,87447.0,0.676]
[1742865280247,0.1810599,87448.0,87447.0,0.676]
[1742865280447,0.06672,87448.0,87447.0,0.676]
[1742865280662,0.1801399,87448.0,87447.0,0.676]
[1742865280848,0.1811399,87448.0,87447.0,0.676]
[1742865284350,0.1811399,87448.0,87447.0,0.6427]
[1742865285454,0.1811399,87448.0,87447.0,0.6114]
[1742865285655,0.2134399,87448.0,87447.0,0.6114]
[1742865286056,0.2134399,87448.0,87447.0,0.3614]
[1742865287962,0.2134399,87448.0,87447.0,0.6214]
[1742865290752,0.2134399,87448.0,87447.0,0.2606]
[1742865291260,0.1811399,87448.0,87447.0,0.2606]
[1742865297171,0.1811399,87448.0,87447.0,0.2929]
[1742865299168,0.1491399,87448.0,87447.0,0.3929]
[1742865299761,0.1491399,87448.0,87447.0,0.2929]
[1742865300361,0.0348,87448.0,87447.0,0.2929]
[1742865300570,0.1491399,87448.0,87447.0,0.5529]
[1742865300774,0.1491399,87448.0,87447.0,0.2929]
[1742865301168,0.1491399,87448.0,87447.0,0.5729]
[1742865301373,0.0348,87448.0,87447.0,0.5729]
[1742865301566,0.1491399,87448.0,87447.0,0.5729]
[1742865302275,0.1491399,87448.0,87447.0,0.2929]
[1742865302773,0.1810399,87448.0,87447.0,0.2929]
[1742865305266,0.1810399,87448.0,87447.0,0.0329]
[1742865306466,0.1810399,87448.0,87447.0,0.1429]
[1742865306670,0.1810399,87448.0,87447.0,0.2429]
[1742865306872,0.1810399,87448.0,87447.0,0.1429]
[1742865307272,0.18099033,87448.0,87447.0,0.1429]
[1742865308265,0.14909033,87448.0,87447.0,0.1429]
[1742865308967,0.18169033,87448.0,87447.0,0.1429]
[1742865309774,0.14909033,87448.0,87447.0,0.1429]
[1742865312980,0.14909033,87448.0,87447.0,0.0329]
[1742865313772,0.14909033,87448.0,87447.0,0.2229]
[1742865319394,0.14909033,87448.0,87447.0,0.3229]
[1742865320692,0.14909033,87448.0,87447.0,0.2229]
[1742865321094,0.14909033,87448.0,87447.0,0.48758605]
[1742865321300,0.14909033,87448.0,87447.0,0.23758605]
[1742865323103,0.14909033,87448.0,87447.0,0.34758605]
[1742865323403,0.14909033,87448.0,87447.0,0.23758605]
[1742865323606,0.18059033,87448.0,87447.0,0.23758605]
[1742865330506,0.18059033,87448.0,87447.0,0.2229]
[1742865339708,0.18059033,87448.0,87447.0,0.23757415]
[1742865343704,0.18059033,87448.0,87447.0,0.2229]
[1742865344815,0.18059033,87448.0,87447.0,0.2558]
[1742865346115,0.18059033,87448.0,87447.0,0.2235]
[1742865346418,0.18059033,87448.0,87447.0,0.1906]
[1742865348017,0.18059033,87448.0,87447.0,0.2234]
[1742865351914,0.18059033,87448.0,87447.0,0.4634]
[1742865365220,0.14909033,87448.0,87447.0,0.4634]
[1742865367421,0.18069033,87448.0,87447.0,0.4634]
[1742865370324,0.14909033,87448.0,87447.0,0.4634]
[1742865370628,0.12509852,87455.0,87447.0,0.4634]
[1742865370827,0.0111878,87461.0,87454.0,0.1143321]
[1742865371142,0.00060001,87463.0,87462.0,0.1143216]
[1742865371327,0.00120002,87464.0,87463.0,0.1143203]
[1742865371519,0.00060001,87464.0,87463.0,0.6350403]
[1742865371832,0.01114884,87472.0,87468.0,0.1143138]
[1742865372032,0.01114884,87472.0,87468.0,0.6878138]
[1742865372520,0.0308,87477.0,87468.0,0.6878138]
[1742865372720,0.1143,87479.0,87472.0,0.1143081]
[1742865372921,0.1451007,87478.0,87477.0,0.3608]
[1742865373121,0.03152,87478.0,87477.0,0.84152]
[1742865373320,0.15602915,87478.0,87477.0,0.84152]
[1742865373533,0.15678915,87478.0,87477.0,0.84152]
[1742865373736,0.04248845,87478.0,87477.0,0.84152]
[1742865373924,0.15678915,87478.0,87477.0,0.84152]
[1742865375833,0.15778915,87478.0,87477.0,0.84152]
[1742865379434,0.15778915,87478.0,87477.0,0.61152]
[1742865381728,0.15778915,87478.0,87477.0,0.25072]
[1742865385531,0.19088915,87478.0,87477.0,0.25072]
[1742865391436,0.19088915,87478.0,87477.0,0.00072]
[1742865391639,0.1143111,87470.0,87469.0,0.00017144]
[1742865391938,0.2263911,87470.0,87469.0,0.03399144]
[1742865392240,0.2263911,87470.0,87469.0,0.03327144]
[1742865392440,0.2909911,87470.0,87469.0,0.03327144]
[1742865392842,0.2919911,87470.0,87469.0,0.03327144]
[1742865400349,0.2919911,87470.0,87469.0,0.00017144]
[1742865400540,0.1143216,87462.0,87461.0,0.0315]
[1742865400738,0.1150416,87462.0,87461.0,0.02072]
[1742865400939,0.1143281,87457.0,87456.0,0.3608]
[1742865401169,0.114336,87451.0,87450.0,0.0315]
[1742865401454,0.115016,87451.0,87450.0,0.03214]
[1742865401752,0.537616,87451.0,87450.0,0.03214]
[1742865402545,0.537616,87451.0,87450.0,0.03414]
[1742865403656,0.537616,87451.0,87450.0,0.0355]
[1742865404555,0.54882314,87451.0,87450.0,0.0355]
[1742865409963,0.18802314,87451.0,87450.0,0.0355]
[1742865412763,0.1143491,87441.0,87440.0,0.0319]
[1742865412960,0.5871491,87441.0,87440.0,0.0625]
[1742865413154,0.6514491,87441.0,87440.0,0.0625]
[1742865413663,0.6514491,87441.0,87440.0,0.0926]
[1742865414355,0.1763,87441.0,87440.0,0.0926]
[1742865414558,0.2906491,87441.0,87440.0,0.0926]
[1742865415352,0.2906491,87441.0,87440.0,0.0306]
[1742865415569,0.1143621,87431.0,87430.0,0.0325]
[1742865415860,0.5873621,87431.0,87430.0,0.0331]
[1742865416065,0.6479621,87431.0,87430.0,0.0331]
[1742865416463,0.6479621,87431.0,87424.0,0.3608]
[1742865416464,0.0571837,87427.0,87424.0,0.3608]
[1742865416768,0.1143765,87420.0,87419.0,0.20561482]
[1742865416964,0.58773651,87420.0,87419.0,0.20625482]
[1742865417357,0.1143818,87416.0,87409.0,0.34028615]
[1742865417561,0.1157418,87416.0,87415.0,0.27460697]
[1742865418059,0.12417883,87416.0,87415.0,0.27460697]
[1742865418259,0.15657883,87416.0,87415.0,0.27460697]
[1742865419366,0.51737883,87416.0,87415.0,0.27460697]
[1742865419668,0.51737883,87416.0,87408.0,0.0649]
[1742865419669,0.1143909,87409.0,87408.0,0.0325]
[1742865419854,0.47380001,87409.0,87408.0,0.0325]
[1742865420054,0.58819091,87409.0,87408.0,0.0325]
[1742865420458,0.65189091,87409.0,87408.0,0.0325]
[1742865421069,0.65189091,87409.0,87408.0,0.0375]
[1742865421957,0.66298119,87409.0,87408.0,0.005]
[1742865422161,0.54859029,87409.0,87384.0,0.3608]